Cogmind - Beta 14 @@@ ROGUE MODE // 2025.01.10 @ 12:02:41 Player: Alien Result: Destroyed by M5-QHV(R) with Subdweller Machine Gun Performance ------------- Evolutions (0) 0 Regions Visited (2) 400 Robots Destroyed (22) 110 Value Destroyed (627) 627 Prototype IDs (1) 20 Alien Tech Used (0) 0 Bonus (0) 0 TOTAL SCORE: 1157 Bonus ------- None Cogmind --------- Core Integrity 0/250 Matter 1/300 Energy 100/100 System Corruption 2% Temperature Cool (0) Movement Rolling (110) Location -10/Subcaves Parts ------- > --- POWER (1) -------- (None) > --- PROPULSION (2) --- Light Treads Subdweller Monowheel > --- UTILITY (2) ------ Small Storage Unit Seismic Detector > --- WEAPON (2) ------- Mini Grenade Launcher Mini Grenade Launcher > --- INVENTORY (8) ---- Spiked Treads Medium Matter Pod (0) Subdweller Optics Shotgun Shotgun Shotgun Battle Rifle Peak State ------------ > --- POWER ------------ Ion Engine Light Nuclear Core > --- PROPULSION ------- Light Treads Light Treads > --- UTILITY ---------- Small Storage Unit Power Bank > --- WEAPON ----------- Mini Grenade Launcher Mini Grenade Launcher > --- INVENTORY -------- Spiked Treads Medium Matter Pod Subdweller Optics Seismic Detector Shotgun Shotgun Shotgun [Rating: 21] Favorites ----------- Power Ion Engine Engine Ion Engine Power Core Light Nuclear Core Propulsion Light Treads Treads Light Treads Wheel Subdweller Monowheel Utility Small Storage Unit Device Seismic Detector Storage Small Storage Unit Weapon Shotgun Ballistic Gun Shotgun Launcher Mini Grenade Launcher Build | -11 -10 -10 ------- Run | Yrd Mat Sub Slots Evolved . | . . . Power . | . . . Propulsion . | . . . Utility . | . . . Weapon . | . . . Parts Attached 18 | 7 3 8 Power 4 | 1 1 2 Engine 2 | 1 1 . Core 2 | . . 2 Reactor . | . . . Propulsion 3 | 2 . 1 Treads 2 | 2 . . Leg . | . . . Wheel 1 | . . 1 Hover . | . . . Flight . | . . . Utility 4 | 2 . 2 Device 3 | 1 . 2 Storage 1 | 1 . . Processor . | . . . Hackware . | . . . Protection . | . . . Artifact . | . . . Weapon 7 | 2 2 3 Energy Gun . | . . . Energy Cannon . | . . . Ballistic Gun 4 | 2 2 . Ballistic Cannon . | . . . Launcher 3 | . . 3 Special Weapon . | . . . Impact Weapon . | . . . Slashing Weapon . | . . . Piercing Weapon . | . . . Special Melee Weapon . | . . . Unidentified Prototypes 1 | . . 1 Parts Lost 2 | . . 2 Power 1 | . . 1 Propulsion 1 | . . 1 Utility . | . . . Weapon . | . . . Highest Loss Streak 1 | . . 1 To Critical Strikes . | . . . Average Slot Usage (%) 95 | . 99 92 Engine 11 | . 14 8 Core 3 | . . 6 Treads 26 | . 28 25 Device 12 | . 14 11 Storage 13 | . 14 13 Ballistic Gun 15 | . 27 6 Launcher 11 | . . 19 Peak Build Rating 21 | 7 10 21 Average Rating 10 | 5 8 12 On Entrance 5 | . 7 10 Naked Turns . | . . . Heaviest Build 22 | 14 17 22 Greatest Support 40 | 40 40 40 Greatest Overweight (x) 2 | 2 . . Average Overweight (x) . | . . . Largest Inventory Capacity 8 | 8 8 8 Average Capacity 7 | 7 8 8 Most Carried 8 | 7 8 8 Average Carried 7 | 4 7 7 Final Capacity 8 | 8 8 8 Final Carried 8 | 7 8 7 Class Distribution -------------------- 100% | Mutant Dominant Class ---------------- Mutant | -10/Materials Mutant | -10/Subcaves Resources | -11 -10 -10 ----------- Run | Yrd Mat Sub Matter Collected 646 | 103 238 305 Remotely . | . . . Salvage Created 592 | 111 238 243 Parts 32 | 12 15 5 Haulers Intercepted . | . . . Recyclers Shooed 1 | . 1 . Parts Field Recycled . | . . . Retrieved Matter . | . . . Parts Self-Destructed 2 | . . 2 Prevented . | . . . Kills | -11 -10 -10 ------- Run | Yrd Mat Sub Combat Hostiles Destroyed 17 | . 6 11 Guns 7 | . 6 1 AOE 10 | . . 10 Classes Destroyed 6 | 2 3 1 Tunneler 2 | 2 . . Recycler 2 | 1 1 . Watcher 1 | . 1 . Swarmer 3 | . 3 . Grunt 3 | . 3 . Subdweller 11 | . . 11 Best Kill Streak 3 | 3 2 3 Combat Bots Only 3 | . 2 3 Max Kills in Single Turn 2 | 1 2 2 Gunslinging 1 | . 1 . Exploded 2 | . . 2 Melee . | . . . Uniques/NPCs Destroyed . | . . . Combat | -11 -10 -10 -------- Run | Yrd Mat Sub Hostile Shots Fired 61 | . 20 41 Missed 15 | . 2 13 Damage Taken 1036 | . 186 850 Core 263 | . 8 255 Absorbed by Shields . | . . . Core Remaining (%) 100 | 100 . . Volleys Fired 52 | 8 18 26 Largest 2 | 2 2 2 Hottest 60 | 40 46 60 Shots Fired 90 | 16 36 38 Gun 58 | 16 36 6 Cannon . | . . . Launcher 32 | . . 32 Special . | . . . Kinetic 63 | 16 36 11 Thermal . | . . . Explosive 27 | . . 27 Electromagnetic . | . . . Robot Hit Streak 18 | 4 8 18 Robot Miss Streak 6 | 2 6 1 Penetration Max . | . . . Secondary Targets 1 | . 1 . Max Gunslinging Chain 1 | . 1 . Shots Hit Robots 52 | 9 21 22 Core Hits 39 | 4 11 24 Critical Kills . | . . . Critical Parts Destroyed . | . . . Critical Strikes . | . . . Melee Attacks . | . . . Impact . | . . . Slashing . | . . . Piercing . | . . . Sneak Attacks . | . . . Combat Hostiles . | . . . Follow-up Attacks . | . . . Damage Inflicted 2142 | 110 341 1691 Guns 525 | 110 332 83 Cannons . | . . . Explosions 1608 | . . 1608 Melee . | . . . Ramming 9 | . 9 . Kinetic 727 | 110 332 285 Thermal . | . . . Explosive 1406 | . . 1406 Electromagnetic . | . . . Impact . | . . . Slashing . | . . . Piercing . | . . . Highest Corruption 2 | . 2 2 Average Corruption 1 | . 1 2 Corruption Purged . | . . . Corruption Blocked . | . . . Effects 28 | . 7 21 Message Errors 11 | . 5 6 Matter Fused 6 | . 1 5 Heat Flow Errors 2 | . . 2 Energy Discharges 2 | . . 2 Data Loss (minor) 2 | . . 2 Data Loss (major) 3 | . 1 2 Misfires 2 | . . 2 Overload Shots . | . . . Overflow Damage 1 | . . 1 Projectiles . | . . . Explosions 1 | . . 1 Melee . | . . . Knockbacks . | . . . Impact . | . . . Kinetic . | . . . Secondary . | . . . Self-Inflicted Damage 78 | . . 78 Shots 5 | . . 5 Rammed 1 | . 1 . Targets Rammed 2 | . 2 . Kicked . | . . . Crushed 1 | . 1 . Highest Temperature 179 | . 12 179 Average Temperature 45 | . 6 90 Received Heat Transfer 156 | . 42 114 Siege Activations . | . . . Robots Corrupted . | . . . Combat Hostiles . | . . . Parts Fried . | . . . Impact Corruptions . | . . . Robots Melted . | . . . Combat Hostiles . | . . . Parts Melted . | . . . Heat Transferred . | . . . Parts Sabotaged . | . . . Parts Stolen . | . . . Parts Stripped . | . . . Power Chain Reactions . | . . . Alert | -11 -10 -10 ------- Run | Yrd Mat Sub Peak Influence 95 | 15 95 . Initial 9 | . 9 . Average 40 | 5 44 . Maximum Alert Level . | . . . Low Security (%) 100 | 100 100 . Level 1 . | . . . Level 2 . | . . . Level 3 . | . . . Level 4 . | . . . Level 5 . | . . . High Security . | . . . Max Security . | . . . Squads Dispatched . | . . . Investigation . | . . . Extermination . | . . . Reinforcement . | . . . Assault . | . . . Garrison . | . . . Intercept . | . . . Searches Triggered . | . . . Construction Impeded . | . . . Haulers Reinforced . | . . . Active Scanning Responses . | . . . Cargo Convoy Interrupts . | . . . Stealth | -11 -10 -10 --------- Run | Yrd Mat Sub Distress Signals 2 | . 2 . Communications Jammed . | . . . Distress Signals . | . . . Times Spotted 22 | . 9 13 Peak Tracking Total 3 | . 2 3 Tactical Retreats . | . . . Traps | -11 -10 -10 ------- Run | Yrd Mat Sub Traps Triggered 5 | . 3 2 Indirectly . | . . . Trap Hack Attempts . | . . . Triggered . | . . . Disarmed . | . . . Reprogrammed . | . . . Reused . | . . . Traps Extracted . | . . . Installed . | . . . Triggered . | . . . Machines | -11 -10 -10 ---------- Run | Yrd Mat Sub Machines Disabled . | . . . Max in Single Turn . | . . . Machines Repaired . | . . . Machines Dismantled . | . . . Machines Sabotaged . | . . . Overloaded Fab Kills . | . . . Hacking | -11 -10 -10 --------- Run | Yrd Mat Sub Machines Accessed 6 | . 5 1 Terminals 5 | . 5 . Fabricators . | . . . Repair Stations . | . . . Recycling Units . | . . . Scanalyzers . | . . . Garrison Access . | . . . Total Hacks 22 | . 18 4 Successful 15 | . 11 4 Failed 7 | . 7 . Catastrophic 1 | . 1 . Database Lockouts . | . . . Manual 13 | . 13 . Terminals 18 | . 18 . Fabricators . | . . . Repair Stations . | . . . Recycling Units . | . . . Scanalyzers . | . . . Garrison Access . | . . . Terminal Hacks 12 | . 8 4 Record 4 | . . 4 Robot Analysis 2 | . 2 . Alert Level 2 | . 2 . Maintenance Status 1 | . 1 . Hauler Manifests 1 | . 1 . Zone Layout 2 | . 2 . Fabricator Hacks . | . . . Repair Station Hacks . | . . . Recycling Unit Hacks . | . . . Scanalyzer . | . . . Garrison Access Hacks . | . . . Unauthorized Hacks 3 | . 3 . Terminals 3 | . 3 . Botnet 2 | . 2 . Operators 1 | . 1 . Fabricators . | . . . Repair Stations . | . . . Recycling Units . | . . . Scanalyzers . | . . . Garrison Access . | . . . Data Cores Recovered . | . . . Used . | . . . Hacking Detections 4 | . 4 . Full Trace Events . | . . . Feedback Events . | . . . Feedback Blocked . | . . . Robot Schematics Acquired . | . . . Robots Built . | . . . Authchips . | . . . Time . | . . . Total Robot Build Rating . | . . . Part Schematics Acquired . | . . . Parts Built . | . . . Authchips . | . . . Time . | . . . Total Part Build Rating . | . . . Parts Repaired . | . . . Time . | . . . Parts Recycled . | . . . Recycled Matter . | . . . Retrieved Matter . | . . . Retrieved Components . | . . . Parts Scanalyzed . | . . . Part Schematics Acquired . | . . . Parts Damaged . | . . . Bothacking | -11 -10 -10 ------------ Run | Yrd Mat Sub Used RIF Installer . | . . . Robots Hacked . | . . . Non-combat . | . . . Combat . | . . . Robot Hacks Applied . | . . . Relay Couplers Released . | . . . Fabnet Peak Effective % . | . . . Robots Rewired . | . . . Allies Hacked . | . . . Hacks Repelled . | . . . Allies | -11 -10 -10 -------- Run | Yrd Mat Sub Total Allies . | . . . Largest Group . | . . . Highest-Rated Group . | . . . Highest-Rated Ally . | . . . Total Orders . | . . . Ally Attacks . | . . . Total Damage . | . . . Kills . | . . . Allies Corrupted . | . . . Allies Melted . | . . . Intel | -11 -10 -10 ------- Run | Yrd Mat Sub Robot Analysis Total 2 | . 2 . Derelict Logs Recovered . | . . . Drone Launches . | . . . Drone Recoveries . | . . . Exploration | -11 -10 -10 ------------- Run | Yrd Mat Sub Turns Passed 2924 | 134 1213 1577 Spaces Moved 1458 | 60 485 913 Core 7 | 7 . . Treads 1419 | 53 485 881 Legs . | . . . Wheels 32 | . . 32 Hover . | . . . Flight . | . . . Fastest Speed 50 | 50 160 110 Average Speed 158 | 150 160 158 Slowest Speed 160 | 160 160 160 Overloaded Moves . | . . . Propulsion Burnouts . | . . . Robots Hopped . | . . . Cave-ins Triggered . | . . . Exploration Rate (%) 49 | 6 78 63 Regions Visited 2 Branch Regions 1 Pre-discovered Areas 1 | . . 1 Known Exits Taken . | . . . Unknown Exits Taken 2 | 1 1 . Scrap Searched . | . . . Spaces Dug 34 | . . 34 Terrain Destroyed 183 | . . 183 Melee . | . . . Projectile . | . . . AOE 183 | . . 183 Terrain Rammed . | . . . Walls Destroyed . | . . . Machines Disabled . | . . . Actions | -11 -10 -10 --------- Run | Yrd Mat Sub Total 1983 | 86 891 1006 Wait 414 | 5 362 47 Move 1456 | 59 484 913 Hop . | . . . Pick Up 22 | 7 10 5 Fast Attach 12 | 7 2 3 Attach 3 | . . 3 Detach 1 | . . 1 Swap 3 | . 1 2 Drop 18 | . 12 6 Fire 52 | 8 18 26 Melee . | . . . Ram . | . . . Kick . | . . . Crush 2 | . 2 . Escape Stasis . | . . . Rewire . | . . . Trap . | . . . Miscellaneous . | . . . Route ------- -11/Scrapyard -10/Materials (discovered 5 exits: [*Mat x2] / [*Min x2] / *Sub) -10/Subcaves (discovered 1 exit: [*Mat]) History --------- Turn | Location | Event 36 | -11/Scrapyard | Discovered new exit (range 16) 135 | -11/Scrapyard | Entered Materials 313 | -10/Materials | Build established: Mutant 371 | -10/Materials | Discovered new exit (range 15) 536 | -10/Materials | Discovered new exit (range 6) 726 | -10/Materials | Discovered new exit (range 12) 798 | -10/Materials | Discovered new exit (range 10) 1340 | -10/Materials | Discovered new exit (range 6) 1348 | -10/Materials | Entered Subcaves 1351 | -10/Subcaves | Ambushed by Subdwellers from Twisted Machinery 1702 | -10/Subcaves | Shifting Twisted Machinery released Sub. Optics 1720 | -10/Subcaves | Shifting Twisted Machinery released Spk. Treads 1753 | -10/Subcaves | A swath of the cavern ceiling suddenly collapsed 1997 | -10/Subcaves | Visited Clippyterm 2002 | -10/Subcaves | Learned Factory emergency access door positions 2002 | -10/Subcaves | Learned 40 Factory zone layouts 2034 | -10/Subcaves | A Subdweller sparked back to life 2034 | -10/Subcaves | A Subdweller sparked back to life 2034 | -10/Subcaves | A Subdweller sparked back to life 2041 | -10/Subcaves | Ambushed by Subdweller buried in earth 2066 | -10/Subcaves | Found Prototype Device 2066 | -10/Subcaves | Identified Power Bank 2067 | -10/Subcaves | Attached Power Bank, gained temporary slots: Power x3 2177 | -10/Subcaves | Learned location of Zion (-6) 2177 | -10/Subcaves | Met a Zionite searching for "candidates" 2733 | -10/Subcaves | Core integrity fell below 50% 2780 | -10/Subcaves | Discovered new exit (range 14) 2906 | -10/Subcaves | Core integrity fell below 20% 2912 | -10/Subcaves | Ambushed by Subdweller buried in earth 2923 | -10/Subcaves | Shifting Twisted Machinery released Mak. System Shield 2924 | -10/Subcaves | Shifting Twisted Machinery released Flamer 2925 | -10/Subcaves | Destroyed by M5-QHV(R) with Subdweller Machine Gun Last Messages --------------- 02777_ Triggered Piercing Trap. 02777_ Spikes shoot up from the floor. 02777_ Critical hit (Impale). 02780_ EXIT=FOUND 02787_ The unstable cave ceiling collapses. 02817_ Acquired 15 matter. 02855_ System corrupted: Substantial component data lost. 02858_ 7B-AVW(R): "OHNO!" 02876_ The unstable cave ceiling collapses. 02877_ Lgt. Treads destroyed. 02890_ Acquired 12 matter. 02894_ Acquired 13 matter. 02909_ Acquired 7 matter. 02912_ Destroyed Scrap Shield. 02913_ M5-QHV(R): "ARGHSUB!" 02913_ Lgt. Nuclear Core destroyed. 02914_ 7B-AVW(R) destroyed. 02915_ System corrupted: Heat flow error (+209). Mak. System Shield falls loose from the Twisted Machinery. Flamer falls loose from the Twisted Machinery. Map ----- +----------------------------------------------------+ | ###???# & # < #??###??????????????????? | | # ##### ### #??????????????????? | | ## ## ## #??????????????????? | | ### #??????????????????? | | # ##?#### ##??????????????????? | | ###???####### #???????????????????? | | #### ## #???### ##??# ####?#???????????????? | | ## # #??## #### ## # ### #????????? | | # # ##?## ## #????????? | | # ## ##??# ## ## ##??????????????? | | # # ## ##???# ## ###??????????????????? | | ## # #????# #### #???????????????????? | | ## ?????# #??# #?????????????????? | | ### ????# ##?# ## #?????????????????? | | ### ???# ######## ##?????????????????? | | ## ### ##????#####??????????????????? | | #?# ##??????????????????????????? | | ####??# ########???????????????????? | | #?????# #???????????????????? | | #####?# ##?####?????????????? | | #### # ### ##????????????? | | #?## """### ## ##???????????? | | #??## " "?# #???????????? | | #???# """?# ###???????????? | | ##???## ?### #?????????????? | | ##?????##????###" @ #?????????????? | | ##??????????????# " | ## ##?????????????? | | ###????????????"" #" /R ####??????????????? | | ????????????????" ## #????????????????? | | ???????????????? #" #????????????????? | | ???????????????###?#!""### # #????????????????? | | ??????????????????"|"""#?#### #???????????????? | | ????????????????? ""??????## #??????????????? | | ????????????????" ""?"???????## #?????????????? | | ???????????????##"?????????????# #????????????? | | ????????????????#??????????????? ##????????????? | | ???????????????????????????????? #?????????????? | | ???????????????????????????????? #?????????????? | | ???????????????????????????????? ?????????????? | | ????????????????????????????????# ?????????????? | | ????????????????????????????????? ????????????? | | ????????????????????????????????? ????????????? | | ?????????????????????????????????? ??????????????? | | ?????????????????????????????????????????????????? | | ?????????????????????????????????????????????????? | | ?????????????????????????????????????????????????? | | ?????????????????????????????????????????????????? | | ??????????????????????????????????????#??????????? | | ?????????????????????????????????????? ??????????? | | ????????????????????????????????????? ??????????? | +----------------------------------------------------+ Best States ------------- Heat Dissipation 25 Energy Generation 19 Energy Capacity 310 Matter Stores 292 Matter Capacity 300 Sight Range 16 Terrain Scan Density 10 Evasion (%) 50 Recoil Reduction 2 Item Schematics ----------------- None Robot Schematics ------------------ None Fabricated ------------ Nothing Alien Tech Used ----------------- None Achievements -------------- None Challenges ------------ None Game ------ Seed ClaymoresFocalThrower Manual? 0 Play Time 00:16:10 Cumulative 57.0 hours Start 2025.01.10 @ 11:46:50 End 2025.01.10 @ 12:02:41 Sessions 1 Manual Loads 0 Difficulty Rogue Special Mode None Game No. 58 Rogue 58 Adventurer 0 Explorer 0 Win Type - Total 1 Types 0/0/0/1/0/0/0/0/0 Lore% 43 Gallery% 44 Achievement% 44 Wizard Run 0 Options --------- Layout 0 ASCII 0 Keyboard 1 Movement Numpad Keybinds 0 Fullscreen 1 Font 24/Smallcaps Map View 76x56 Zoom Use 0% Tactical HUD 1 Map Filters NONE Filters NONE Steam 1 RUN: c52f1f85-2fae-4016-aae3-cc6875330e8f